[Event "*** SCC Grand Prix: Titled Tuesday Blitz"]
[Site "Chess.com"]
[Date "2020.08.25"]
[Round "4"]
[White "pedro_nascimento85"]
[Black "nitpicker"]
[Result "0-1"]
[WhiteElo "1939"]
[BlackElo "2212"]
[TimeControl "180+1"]
[EndTime "10:35:45 PDT"]
[Termination "nitpicker won by resignation"]

1. d4 {[%clk 0:03:00.9]} 1... Nf6 {[%clk 0:02:58.9]} 2. c4 {[%clk 0:02:59.9]}
2... e6 {[%clk 0:02:57.8]} 3. Nc3 {[%clk 0:02:59.3]} 3... Bb4 {[%clk 0:02:57.4]}
4. e3 {[%clk 0:02:59.4]} 4... d5 {[%clk 0:02:56.3]} 5. Bd3 {[%clk 0:02:55.8]}
5... O-O {[%clk 0:02:55.5]} 6. Ne2 {[%clk 0:02:55.9]} 6... Nbd7 {[%clk
0:02:54.1]} 7. a3 {[%clk 0:02:55.5]} 7... Be7 {[%clk 0:02:53.4]} 8. O-O {[%clk
0:02:55.1]} 8... c5 {[%clk 0:02:47.8]} 9. cxd5 {[%clk 0:02:45]} 9... exd5 {[%clk
0:02:46.8]} 10. dxc5 {[%clk 0:02:38]} 10... Nxc5 {[%clk 0:02:46.8]} 11. Bc2
{[%clk 0:02:36.3]} 11... Be6 {[%clk 0:02:46.2]} 12. b4 {[%clk 0:02:35.4]} 12...
Nce4 {[%clk 0:02:42.7]} 13. Bb2 {[%clk 0:02:35.6]} 13... Nd6 {[%clk 0:02:38]}
14. Ng3 {[%clk 0:02:30.6]} 14... Qd7 {[%clk 0:02:32.3]} 15. h3 {[%clk
0:02:29.7]} 15... Rac8 {[%clk 0:02:31.8]} 16. Qf3 {[%clk 0:02:27.3]} 16... Nc4
{[%clk 0:02:30]} 17. Bc1 {[%clk 0:02:21.8]} 17... Ne5 {[%clk 0:02:25.1]} 18. Qf4
{[%clk 0:02:18.3]} 18... Rxc3 {[%clk 0:02:22.8]} 19. Qxe5 {[%clk 0:02:17.4]}
19... Rxc2 {[%clk 0:02:23]} 0-1

[Event "*** SCC Grand Prix: Titled Tuesday Blitz"]
[Site "Chess.com"]
[Date "2020.08.25"]
[Round "4"]
[White "maurito96"]
[Black "Pikachess999"]
[Result "0-1"]
[WhiteElo "2151"]
[BlackElo "2381"]
[TimeControl "180+1"]
[EndTime "10:36:06 PDT"]
[Termination "Pikachess999 won by resignation"]

1. e4 {[%clk 0:03:00.9]} 1... e6 {[%clk 0:02:59.9]} 2. d4 {[%clk 0:02:55.9]}
2... d5 {[%clk 0:03:00.4]} 3. Nc3 {[%clk 0:02:47.6]} 3... Nf6 {[%clk 0:03:00.7]}
4. e5 {[%clk 0:02:46.9]} 4... Nfd7 {[%clk 0:03:01.1]} 5. f4 {[%clk 0:02:47.4]}
5... c5 {[%clk 0:03:01]} 6. Nf3 {[%clk 0:02:47.9]} 6... Nc6 {[%clk 0:03:01.3]}
7. Be3 {[%clk 0:02:48.1]} 7... a6 {[%clk 0:03:01.4]} 8. Qd2 {[%clk 0:02:47]}
8... b5 {[%clk 0:03:01.6]} 9. a3 {[%clk 0:02:47.1]} 9... Qa5 {[%clk 0:02:58.9]}
10. Ra2 {[%clk 0:02:45.6]} 10... Bb7 {[%clk 0:02:58.8]} 11. dxc5 {[%clk
0:02:42.9]} 11... b4 {[%clk 0:02:45.8]} 12. axb4 {[%clk 0:02:36.6]} 12... Qxb4
{[%clk 0:02:33.6]} 13. Be2 {[%clk 0:01:58.3]} 13... Bxc5 {[%clk 0:02:27.1]} 14.
Nd4 {[%clk 0:01:38.8]} 0-1

[Event "*** SCC Grand Prix: Titled Tuesday Blitz"]
[Site "Chess.com"]
[Date "2020.08.25"]
[Round "4"]
[White "Playgood28"]
[Black "albano87"]
[Result "1-0"]
[WhiteElo "2343"]
[BlackElo "2549"]
[TimeControl "180+1"]
[EndTime "10:36:49 PDT"]
[Termination "Playgood28 won by resignation"]

1. d4 {[%clk 0:03:00.9]} 1... d5 {[%clk 0:02:59]} 2. c4 {[%clk 0:03:00.5]} 2...
e6 {[%clk 0:02:59.5]} 3. Nc3 {[%clk 0:03:00]} 3... Nf6 {[%clk 0:02:59.2]} 4. Bg5
{[%clk 0:02:59.5]} 4... Be7 {[%clk 0:02:58.7]} 5. cxd5 {[%clk 0:02:59.1]} 5...
exd5 {[%clk 0:02:58.5]} 6. Qc2 {[%clk 0:02:59]} 6... Nbd7 {[%clk 0:02:56.8]} 7.
e3 {[%clk 0:02:58.6]} 7... O-O {[%clk 0:02:56.3]} 8. Nf3 {[%clk 0:02:58.3]} 8...
b6 {[%clk 0:02:53.8]} 9. Be2 {[%clk 0:02:56.5]} 9... Bb7 {[%clk 0:02:52.4]} 10.
Rc1 {[%clk 0:02:54.3]} 10... c5 {[%clk 0:02:52.6]} 11. O-O {[%clk 0:02:46.3]}
11... Rc8 {[%clk 0:02:51.9]} 12. Qb1 {[%clk 0:02:32.7]} 12... Ne4 {[%clk
0:02:48.4]} 13. Bxe7 {[%clk 0:02:21.5]} 13... Qe8 {[%clk 0:02:48.5]} 14. Bxf8
{[%clk 0:02:17.5]} 14... Qxf8 {[%clk 0:02:44]} 15. dxc5 {[%clk 0:02:09.3]} 15...
bxc5 {[%clk 0:02:43.8]} 16. Nxe4 {[%clk 0:02:08.3]} 16... dxe4 {[%clk
0:02:43.8]} 17. Nd2 {[%clk 0:02:06.4]} 17... Ne5 {[%clk 0:02:42.9]} 18. Nxe4
{[%clk 0:02:05]} 18... Qe7 {[%clk 0:02:38.7]} 19. Ng3 {[%clk 0:02:00.1]} 19...
Ng6 {[%clk 0:02:32.6]} 20. Rfd1 {[%clk 0:01:52.5]} 20... h5 {[%clk 0:02:32.1]}
21. Nxh5 {[%clk 0:01:36.6]} 21... Qg5 {[%clk 0:02:31.4]} 22. Ng3 {[%clk
0:01:34.3]} 22... Nh4 {[%clk 0:02:31.1]} 23. Bf1 {[%clk 0:01:33.4]} 23... f5
{[%clk 0:02:28.3]} 24. Qc2 {[%clk 0:01:30.3]} 24... f4 {[%clk 0:02:27.9]} 25.
Qc4+ {[%clk 0:01:29.5]} 25... Kh8 {[%clk 0:02:27.5]} 26. Qxf4 {[%clk 0:01:28.9]}
1-0

[Event "*** SCC Grand Prix: Titled Tuesday Blitz"]
[Site "Chess.com"]
[Date "2020.08.25"]
[Round "4"]
[White "karinachess1"]
[Black "AJSC02"]
[Result "1-0"]
[WhiteElo "2491"]
[BlackElo "2298"]
[TimeControl "180+1"]
[EndTime "10:36:52 PDT"]
[Termination "karinachess1 won by resignation"]

1. e4 {[%clk 0:03:00.9]} 1... c5 {[%clk 0:03:00]} 2. Nf3 {[%clk 0:03:00.8]} 2...
Nc6 {[%clk 0:03:00.4]} 3. d4 {[%clk 0:03:00]} 3... cxd4 {[%clk 0:03:01.3]} 4.
Nxd4 {[%clk 0:03:00.9]} 4... Nf6 {[%clk 0:03:01.8]} 5. Nc3 {[%clk 0:03:00.6]}
5... e5 {[%clk 0:03:02.2]} 6. Ndb5 {[%clk 0:03:00.2]} 6... d6 {[%clk 0:03:02.5]}
7. Nd5 {[%clk 0:02:55.1]} 7... Nxd5 {[%clk 0:03:00.3]} 8. exd5 {[%clk 0:02:56]}
8... Nb8 {[%clk 0:03:00.8]} 9. c4 {[%clk 0:02:53.6]} 9... Be7 {[%clk 0:03:00.9]}
10. Be2 {[%clk 0:02:49.7]} 10... O-O {[%clk 0:03:01]} 11. O-O {[%clk 0:02:49.3]}
11... a6 {[%clk 0:03:01.4]} 12. Nc3 {[%clk 0:02:46.4]} 12... f5 {[%clk
0:03:02.3]} 13. f4 {[%clk 0:02:41.6]} 13... exf4 {[%clk 0:03:00.5]} 14. Bxf4
{[%clk 0:02:27.1]} 14... Qb6+ {[%clk 0:03:00.2]} 15. Kh1 {[%clk 0:02:27]} 15...
Qxb2 {[%clk 0:02:58.3]} 16. Na4 {[%clk 0:02:23.1]} 16... Qf6 {[%clk 0:02:23.4]}
17. Nb6 {[%clk 0:02:14.8]} 17... Ra7 {[%clk 0:02:19.5]} 18. Be3 {[%clk
0:02:14.8]} 18... Qe5 {[%clk 0:01:47.6]} 19. Bd4 {[%clk 0:02:10.3]} 19... Qe4
{[%clk 0:01:33.3]} 20. Nxc8 {[%clk 0:02:01.9]} 1-0

[Event "*** SCC Grand Prix: Titled Tuesday Blitz"]
[Site "Chess.com"]
[Date "2020.08.25"]
[Round "4"]
[White "isainz"]
[Black "Logman74"]
[Result "0-1"]
[WhiteElo "2110"]
[BlackElo "2395"]
[TimeControl "180+1"]
[EndTime "10:36:59 PDT"]
[Termination "Logman74 won by resignation"]

1. e4 {[%clk 0:03:00.9]} 1... c5 {[%clk 0:02:58.9]} 2. Nf3 {[%clk 0:02:59.1]}
2... d6 {[%clk 0:02:58.6]} 3. d4 {[%clk 0:02:59.1]} 3... cxd4 {[%clk 0:02:59.1]}
4. Qxd4 {[%clk 0:02:59.5]} 4... a6 {[%clk 0:02:57.5]} 5. c4 {[%clk 0:02:59]}
5... Nc6 {[%clk 0:02:56.8]} 6. Qe3 {[%clk 0:02:58.7]} 6... Nf6 {[%clk
0:02:57.2]} 7. Nc3 {[%clk 0:02:58]} 7... Bg4 {[%clk 0:02:57]} 8. Be2 {[%clk
0:02:56.5]} 8... g6 {[%clk 0:02:56.3]} 9. h3 {[%clk 0:02:55.6]} 9... Bxf3 {[%clk
0:02:55.7]} 10. Bxf3 {[%clk 0:02:55.9]} 10... Bg7 {[%clk 0:02:56.1]} 11. O-O
{[%clk 0:02:54.7]} 11... O-O {[%clk 0:02:56.6]} 12. Rd1 {[%clk 0:02:54.6]} 12...
Nd7 {[%clk 0:02:56.2]} 13. Rb1 {[%clk 0:02:50.4]} 13... Nc5 {[%clk 0:02:55.7]}
14. b3 {[%clk 0:02:41]} 14... b5 {[%clk 0:02:49.7]} 15. cxb5 {[%clk 0:02:32.8]}
15... axb5 {[%clk 0:02:48.8]} 16. Nxb5 {[%clk 0:02:22.6]} 16... Rxa2 {[%clk
0:02:46.1]} 17. b4 {[%clk 0:01:28.7]} 17... Ne6 {[%clk 0:02:25.2]} 18. Qb3
{[%clk 0:01:15.3]} 18... Ra6 {[%clk 0:02:20.6]} 19. Bg5 {[%clk 0:01:06.8]} 19...
Nxg5 {[%clk 0:02:17.4]} 0-1

[Event "*** SCC Grand Prix: Titled Tuesday Blitz"]
[Site "Chess.com"]
[Date "2020.08.25"]
[Round "4"]
[White "IvanSoriano1"]
[Black "Ashedu66"]
[Result "1-0"]
[WhiteElo "2575"]
[BlackElo "2187"]
[TimeControl "180+1"]
[EndTime "10:36:59 PDT"]
[Termination "IvanSoriano1 won by resignation"]

1. Nf3 {[%clk 0:03:00.9]} 1... d5 {[%clk 0:02:59.5]} 2. d4 {[%clk 0:03:01.3]}
2... Nf6 {[%clk 0:02:59.6]} 3. c4 {[%clk 0:03:01.8]} 3... c6 {[%clk 0:02:59.7]}
4. Nc3 {[%clk 0:03:02.5]} 4... e6 {[%clk 0:02:59.9]} 5. e3 {[%clk 0:03:01.8]}
5... Nbd7 {[%clk 0:02:59.8]} 6. Qc2 {[%clk 0:03:01.5]} 6... Be7 {[%clk
0:02:58.9]} 7. Bd3 {[%clk 0:03:00.8]} 7... O-O {[%clk 0:02:58.7]} 8. O-O {[%clk
0:02:58.9]} 8... b6 {[%clk 0:02:56.4]} 9. Rd1 {[%clk 0:02:57.6]} 9... Bb7 {[%clk
0:02:55.1]} 10. b3 {[%clk 0:02:54.9]} 10... Rc8 {[%clk 0:02:41.2]} 11. Bb2
{[%clk 0:02:54.3]} 11... Qc7 {[%clk 0:02:41]} 12. Rac1 {[%clk 0:02:53.4]} 12...
Qb8 {[%clk 0:02:40.6]} 13. h3 {[%clk 0:02:48.4]} 13... h6 {[%clk 0:02:39.3]} 14.
Qe2 {[%clk 0:02:47.8]} 14... c5 {[%clk 0:02:25.5]} 15. cxd5 {[%clk 0:02:43.1]}
15... exd5 {[%clk 0:02:21.6]} 16. Bf5 {[%clk 0:02:41.9]} 16... Rcd8 {[%clk
0:02:13.8]} 17. Na4 {[%clk 0:02:37.1]} 17... Bd6 {[%clk 0:01:44]} 18. dxc5
{[%clk 0:02:25.7]} 18... bxc5 {[%clk 0:01:39.5]} 19. Bxf6 {[%clk 0:02:24.3]}
19... gxf6 {[%clk 0:01:32.4]} 20. Bxd7 {[%clk 0:02:23.1]} 20... Rxd7 {[%clk
0:01:31]} 21. Nxc5 {[%clk 0:02:23.7]} 21... Re8 {[%clk 0:01:09.2]} 22. Nxd7
{[%clk 0:02:22.6]} 1-0

[Event "*** SCC Grand Prix: Titled Tuesday Blitz"]
[Site "Chess.com"]
[Date "2020.08.25"]
[Round "4"]
[White "JRenatoMaranhao"]
[Black "LaPorfia"]
[Result "0-1"]
[WhiteElo "2045"]
[BlackElo "2232"]
[TimeControl "180+1"]
[EndTime "10:37:10 PDT"]
[Termination "LaPorfia won by resignation"]

1. d4 {[%clk 0:02:58.3]} 1... Nf6 {[%clk 0:02:59]} 2. c4 {[%clk 0:02:35.1]} 2...
e6 {[%clk 0:02:58.2]} 3. Nc3 {[%clk 0:02:34.7]} 3... d5 {[%clk 0:02:58.2]} 4. f3
{[%clk 0:02:32.9]} 4... c5 {[%clk 0:02:55]} 5. e4 {[%clk 0:02:30.8]} 5... dxe4
{[%clk 0:02:53.8]} 6. fxe4 {[%clk 0:02:31.7]} 6... cxd4 {[%clk 0:02:54]} 7. Nb5
{[%clk 0:02:30.9]} 7... Bb4+ {[%clk 0:02:51.2]} 8. Bd2 {[%clk 0:01:59.5]} 8...
Bxd2+ {[%clk 0:02:44.3]} 9. Qxd2 {[%clk 0:02:00.4]} 9... Nxe4 {[%clk 0:02:44.2]}
10. Qxd4 {[%clk 0:01:18.2]} 10... Qxd4 {[%clk 0:02:39.3]} 11. Nxd4 {[%clk
0:01:19.1]} 11... O-O {[%clk 0:02:38.5]} 12. Bd3 {[%clk 0:01:16.4]} 12... Nc5
{[%clk 0:02:37.2]} 13. Bc2 {[%clk 0:01:15.7]} 13... Nc6 {[%clk 0:02:36.2]} 14.
Nxc6 {[%clk 0:01:15.5]} 14... bxc6 {[%clk 0:02:37.1]} 15. Nf3 {[%clk 0:01:15.9]}
15... Ba6 {[%clk 0:02:34.7]} 16. b3 {[%clk 0:01:15.4]} 16... Rad8 {[%clk
0:02:33.8]} 17. Ke2 {[%clk 0:01:12.8]} 17... e5 {[%clk 0:02:31.7]} 18. Rhd1
{[%clk 0:01:12.4]} 18... f6 {[%clk 0:02:30.7]} 19. Nd2 {[%clk 0:01:11.2]} 19...
Ne6 {[%clk 0:02:30.3]} 20. Ne4 {[%clk 0:01:05.4]} 20... Nd4+ {[%clk 0:02:29.9]}
21. Kd2 {[%clk 0:01:05.1]} 21... Nxb3+ {[%clk 0:02:26.9]} 22. Kc3 {[%clk
0:01:04.4]} 22... Nxa1 {[%clk 0:02:25.8]} 23. Rxa1 {[%clk 0:01:05.3]} 23... Rd4
{[%clk 0:02:22.8]} 24. Nc5 {[%clk 0:01:05.6]} 24... Rxc4+ {[%clk 0:02:22.4]} 25.
Kb3 {[%clk 0:01:05]} 0-1

[Event "*** SCC Grand Prix: Titled Tuesday Blitz"]
[Site "Chess.com"]
[Date "2020.08.25"]
[Round "4"]
[White "crackcubano"]
[Black "jefferyx"]
[Result "0-1"]
[WhiteElo "2645"]
[BlackElo "2908"]
[TimeControl "180+1"]
[EndTime "10:37:14 PDT"]
[Termination "jefferyx won by resignation"]

1. Nf3 {[%clk 0:03:00.9]} 1... d5 {[%clk 0:02:59.6]} 2. c4 {[%clk 0:03:00.6]}
2... d4 {[%clk 0:02:59.8]} 3. b4 {[%clk 0:03:00.2]} 3... Bg4 {[%clk 0:02:59.6]}
4. Qb3 {[%clk 0:02:56.2]} 4... Nc6 {[%clk 0:03:00]} 5. a3 {[%clk 0:02:52.5]}
5... a6 {[%clk 0:02:58.7]} 6. e3 {[%clk 0:02:41.1]} 6... Bxf3 {[%clk 0:02:56.4]}
7. gxf3 {[%clk 0:02:40.7]} 7... Nf6 {[%clk 0:02:57.3]} 8. Bb2 {[%clk 0:02:39.8]}
8... e5 {[%clk 0:02:56.7]} 9. Be2 {[%clk 0:02:11.8]} 9... g6 {[%clk 0:02:57]}
10. d3 {[%clk 0:02:11.4]} 10... Bh6 {[%clk 0:02:57.2]} 11. e4 {[%clk 0:02:07.6]}
11... Nh5 {[%clk 0:02:56.7]} 12. Nd2 {[%clk 0:02:07]} 12... Nf4 {[%clk
0:02:51.4]} 13. Bf1 {[%clk 0:02:05.8]} 13... Qh4 {[%clk 0:02:50.6]} 14. b5
{[%clk 0:01:57.1]} 14... axb5 {[%clk 0:02:48.7]} 15. cxb5 {[%clk 0:01:58]} 15...
Na5 {[%clk 0:02:48.7]} 16. Qc2 {[%clk 0:01:52.5]} 16... O-O {[%clk 0:02:48.5]}
17. Nc4 {[%clk 0:01:35.5]} 17... Nxc4 {[%clk 0:02:48.2]} 18. Qxc4 {[%clk
0:01:36.4]} 18... c6 {[%clk 0:02:47.7]} 19. bxc6 {[%clk 0:01:34.1]} 19... Rac8
{[%clk 0:02:46.6]} 20. c7 {[%clk 0:01:34]} 20... Ne6 {[%clk 0:02:46.7]} 21. Qb5
{[%clk 0:01:30.8]} 21... Rxc7 {[%clk 0:02:45.9]} 22. Be2 {[%clk 0:01:15.3]}
22... Rc2 {[%clk 0:02:38.9]} 23. Rf1 {[%clk 0:00:55]} 23... Nf4 {[%clk
0:02:36.8]} 0-1

[Event "*** SCC Grand Prix: Titled Tuesday Blitz"]
[Site "Chess.com"]
[Date "2020.08.25"]
[Round "4"]
[White "AndrewMaco"]
[Black "TokChess"]
[Result "1-0"]
[WhiteElo "2721"]
[BlackElo "2425"]
[TimeControl "180+1"]
[EndTime "10:37:18 PDT"]
[Termination "AndrewMaco won by resignation"]

1. e4 {[%clk 0:03:00.9]} 1... c5 {[%clk 0:02:59.5]} 2. Nf3 {[%clk 0:03:01.2]}
2... d6 {[%clk 0:02:59.9]} 3. d4 {[%clk 0:02:58]} 3... cxd4 {[%clk 0:03:00.4]}
4. Nxd4 {[%clk 0:02:58.9]} 4... Nf6 {[%clk 0:03:00.6]} 5. Nc3 {[%clk 0:02:59.5]}
5... g6 {[%clk 0:03:00.7]} 6. f3 {[%clk 0:02:59.4]} 6... Bg7 {[%clk 0:03:00.8]}
7. Be3 {[%clk 0:03:00]} 7... Nc6 {[%clk 0:02:58.6]} 8. Qd2 {[%clk 0:03:00.2]}
8... O-O {[%clk 0:02:58.5]} 9. O-O-O {[%clk 0:03:00.8]} 9... Nd7 {[%clk
0:02:58.8]} 10. h4 {[%clk 0:02:58.8]} 10... Qa5 {[%clk 0:02:46.4]} 11. h5 {[%clk
0:02:57]} 11... Nb6 {[%clk 0:02:35.7]} 12. Kb1 {[%clk 0:02:52.5]} 12... Nxd4
{[%clk 0:02:25.6]} 13. Bxd4 {[%clk 0:02:52]} 13... Bxd4 {[%clk 0:02:26]} 14.
Qxd4 {[%clk 0:02:52.9]} 14... Be6 {[%clk 0:02:25.3]} 15. hxg6 {[%clk 0:02:48]}
15... fxg6 {[%clk 0:02:25.2]} 16. Bd3 {[%clk 0:02:27.7]} 16... Rf7 {[%clk
0:02:19]} 17. a3 {[%clk 0:02:26.9]} 17... Rc8 {[%clk 0:02:17.2]} 18. Rde1 {[%clk
0:02:21.3]} 18... Rxc3 {[%clk 0:02:07.7]} 19. Qxc3 {[%clk 0:02:21.1]} 19... Qxc3
{[%clk 0:02:07.8]} 20. bxc3 {[%clk 0:02:22]} 20... Na4 {[%clk 0:02:08.4]} 21. c4
{[%clk 0:02:18.6]} 21... Rf8 {[%clk 0:01:17.8]} 22. e5 {[%clk 0:02:16.4]} 22...
d5 {[%clk 0:01:18.2]} 23. cxd5 {[%clk 0:02:15.5]} 23... Bxd5 {[%clk 0:01:13.2]}
24. Rh4 {[%clk 0:02:15.7]} 24... Nc5 {[%clk 0:01:06.2]} 25. Bc4 {[%clk
0:02:13.5]} 1-0

[Event "*** SCC Grand Prix: Titled Tuesday Blitz"]
[Site "Chess.com"]
[Date "2020.08.25"]
[Round "4"]
[White "narutosmith"]
[Black "1f3_2g41-0"]
[Result "1-0"]
[WhiteElo "2288"]
[BlackElo "2434"]
[TimeControl "180+1"]
[EndTime "10:37:25 PDT"]
[Termination "narutosmith won by resignation"]

1. c4 {[%clk 0:03:00.9]} 1... Nf6 {[%clk 0:02:58.3]} 2. Nc3 {[%clk 0:03:00.9]}
2... g6 {[%clk 0:02:54.6]} 3. g3 {[%clk 0:03:00.9]} 3... Bg7 {[%clk 0:02:54.6]}
4. Bg2 {[%clk 0:03:01.5]} 4... e6 {[%clk 0:02:55.1]} 5. d3 {[%clk 0:03:02]} 5...
Ke7 {[%clk 0:02:55.3]} 6. e4 {[%clk 0:02:59.7]} 6... Re8 {[%clk 0:02:52]} 7.
Nge2 {[%clk 0:02:59.4]} 7... Kf8 {[%clk 0:02:52.3]} 8. O-O {[%clk 0:03:00.3]}
8... Kg8 {[%clk 0:02:52.4]} 9. f4 {[%clk 0:03:00.8]} 9... c5 {[%clk 0:02:52.1]}
10. e5 {[%clk 0:02:59.3]} 10... Ng4 {[%clk 0:02:52]} 11. h3 {[%clk 0:02:57.6]}
11... Nh6 {[%clk 0:02:51.5]} 12. Ne4 {[%clk 0:02:50.9]} 12... Nc6 {[%clk
0:02:47.7]} 13. g4 {[%clk 0:02:27.3]} 13... b6 {[%clk 0:02:39.1]} 14. a3 {[%clk
0:02:19.1]} 14... Qc7 {[%clk 0:02:30.5]} 15. b4 {[%clk 0:02:15.3]} 15... Bf8
{[%clk 0:02:28.5]} 16. Nf6+ {[%clk 0:02:13.1]} 16... Kh8 {[%clk 0:02:28.2]} 17.
Nxe8 {[%clk 0:02:13.2]} 17... Qb8 {[%clk 0:02:23.3]} 18. b5 {[%clk 0:02:12.5]}
18... Na5 {[%clk 0:02:15.4]} 19. Bxa8 {[%clk 0:02:12.1]} 19... Qxa8 {[%clk
0:02:16.3]} 20. Nd6 {[%clk 0:02:09.4]} 20... Bxd6 {[%clk 0:02:15.3]} 21. exd6
{[%clk 0:02:09.6]} 21... f6 {[%clk 0:02:13.9]} 22. Bb2 {[%clk 0:02:06]} 22...
Nf7 {[%clk 0:02:12.4]} 23. Bxf6+ {[%clk 0:02:04.9]} 23... Kg8 {[%clk 0:02:12.9]}
24. f5 {[%clk 0:01:57.8]} 24... Bb7 {[%clk 0:02:09]} 25. fxg6 {[%clk 0:01:55]}
25... hxg6 {[%clk 0:02:08.4]} 26. Nf4 {[%clk 0:01:54.8]} 26... Bh1 {[%clk
0:02:01.6]} 27. Kh2 {[%clk 0:01:50.8]} 27... Bb7 {[%clk 0:01:59.6]} 28. Nxg6
{[%clk 0:01:48.7]} 28... Nxd6 {[%clk 0:01:59.2]} 29. Qd2 {[%clk 0:01:42.2]}
29... Qb8 {[%clk 0:01:55.2]} 30. Be5 {[%clk 0:01:40.1]} 30... Kh7 {[%clk
0:01:53.6]} 31. Qg5 {[%clk 0:01:38]} 31... Ne4 {[%clk 0:01:52.2]} 32. Qh5+
{[%clk 0:01:31]} 1-0

[Event "*** SCC Grand Prix: Titled Tuesday Blitz"]
[Site "Chess.com"]
[Date "2020.08.25"]
[Round "4"]
[White "DarZay"]
[Black "SzMM19"]
[Result "0-1"]
[WhiteElo "2270"]
[BlackElo "2532"]
[TimeControl "180+1"]
[EndTime "10:37:32 PDT"]
[Termination "SzMM19 won by checkmate"]

1. e4 {[%clk 0:02:58.8]} 1... c5 {[%clk 0:02:59.3]} 2. Nf3 {[%clk 0:02:58.8]}
2... a6 {[%clk 0:02:58.3]} 3. d4 {[%clk 0:02:58.9]} 3... cxd4 {[%clk 0:02:59.2]}
4. Nxd4 {[%clk 0:02:59.2]} 4... Nf6 {[%clk 0:02:59.9]} 5. Nc3 {[%clk 0:02:59.2]}
5... e5 {[%clk 0:03:00.5]} 6. Nb3 {[%clk 0:02:59.2]} 6... Bb4 {[%clk 0:03:00.8]}
7. Bd2 {[%clk 0:02:56.5]} 7... Qc7 {[%clk 0:02:58.7]} 8. Bd3 {[%clk 0:02:56.1]}
8... d6 {[%clk 0:02:57.8]} 9. O-O {[%clk 0:02:56]} 9... Bxc3 {[%clk 0:02:54.9]}
10. Bxc3 {[%clk 0:02:55.6]} 10... O-O {[%clk 0:02:55.4]} 11. f4 {[%clk
0:02:53.2]} 11... Nbd7 {[%clk 0:02:49.7]} 12. fxe5 {[%clk 0:02:51.9]} 12... dxe5
{[%clk 0:02:47.9]} 13. Nd2 {[%clk 0:02:48.3]} 13... b5 {[%clk 0:02:43.5]} 14. a3
{[%clk 0:02:46.5]} 14... a5 {[%clk 0:02:42]} 15. Nf3 {[%clk 0:02:44.6]} 15...
Ba6 {[%clk 0:02:32.9]} 16. Qd2 {[%clk 0:02:43.8]} 16... Bb7 {[%clk 0:02:20.7]}
17. Qg5 {[%clk 0:02:41.6]} 17... h6 {[%clk 0:02:15]} 18. Qg3 {[%clk 0:02:38.1]}
18... b4 {[%clk 0:02:00.4]} 19. axb4 {[%clk 0:02:35.6]} 19... axb4 {[%clk
0:02:01.3]} 20. Bxb4 {[%clk 0:02:29.3]} 20... Qb6+ {[%clk 0:01:57.4]} 21. Kh1
{[%clk 0:02:23.7]} 21... Qxb4 {[%clk 0:01:55.6]} 22. Nxe5 {[%clk 0:02:23.7]}
22... Rxa1 {[%clk 0:01:45.2]} 23. Rxa1 {[%clk 0:02:21.4]} 23... Qxb2 {[%clk
0:01:45]} 24. Rf1 {[%clk 0:02:11.2]} 24... Qxe5 {[%clk 0:01:40.8]} 25. Qe3
{[%clk 0:02:09]} 25... Bxe4 {[%clk 0:01:35.7]} 26. Bxe4 {[%clk 0:02:05]} 26...
Nxe4 {[%clk 0:01:29]} 27. Re1 {[%clk 0:02:03.4]} 27... Re8 {[%clk 0:01:28.8]}
28. Qg1 {[%clk 0:01:59]} 28... Ng3+ {[%clk 0:01:23.8]} 29. hxg3 {[%clk
0:01:56.1]} 29... Qh5+ {[%clk 0:01:24.1]} 30. Qh2 {[%clk 0:01:56.3]} 30... Rxe1#
{[%clk 0:01:24.5]} 0-1

[Event "*** SCC Grand Prix: Titled Tuesday Blitz"]
[Site "Chess.com"]
[Date "2020.08.25"]
[Round "4"]
[White "chigorin28"]
[Black "memer5334"]
[Result "1-0"]
[WhiteElo "2466"]
[BlackElo "2162"]
[TimeControl "180+1"]
[EndTime "10:37:39 PDT"]
[Termination "chigorin28 won by resignation"]

1. e4 {[%clk 0:03:00.9]} 1... d5 {[%clk 0:03:00.9]} 2. exd5 {[%clk 0:03:00.5]}
2... c6 {[%clk 0:03:01.3]} 3. d4 {[%clk 0:03:00.2]} 3... cxd5 {[%clk 0:02:52.6]}
4. Nf3 {[%clk 0:03:00.7]} 4... Nf6 {[%clk 0:02:51.9]} 5. Bd3 {[%clk 0:03:00.1]}
5... Nc6 {[%clk 0:02:51.1]} 6. c3 {[%clk 0:02:58.1]} 6... Bg4 {[%clk 0:02:38.8]}
7. O-O {[%clk 0:02:57.4]} 7... e6 {[%clk 0:02:36.3]} 8. Nbd2 {[%clk 0:02:52.8]}
8... Bd6 {[%clk 0:02:34.4]} 9. Re1 {[%clk 0:02:52.3]} 9... h5 {[%clk 0:02:34.2]}
10. h3 {[%clk 0:02:51.2]} 10... Bxf3 {[%clk 0:02:33.2]} 11. Nxf3 {[%clk
0:02:50.3]} 11... Qc7 {[%clk 0:02:16.1]} 12. Bg5 {[%clk 0:02:50]} 12... O-O-O
{[%clk 0:02:11.8]} 13. b4 {[%clk 0:02:46.4]} 13... Rdg8 {[%clk 0:02:08.7]} 14.
a4 {[%clk 0:02:45.7]} 14... Ne4 {[%clk 0:01:57.2]} 15. Bxe4 {[%clk 0:02:42.8]}
15... dxe4 {[%clk 0:01:52.3]} 16. Rxe4 {[%clk 0:02:43.7]} 16... f6 {[%clk
0:01:47.3]} 17. Bd2 {[%clk 0:02:43.4]} 17... g5 {[%clk 0:01:45.1]} 18. Rxe6
{[%clk 0:02:38.7]} 18... g4 {[%clk 0:01:43.1]} 19. b5 {[%clk 0:02:24.1]} 19...
Nd8 {[%clk 0:01:35.7]} 20. Rxf6 {[%clk 0:02:23.4]} 20... gxf3 {[%clk 0:01:17.6]}
21. Qxf3 {[%clk 0:02:20.9]} 21... Kb8 {[%clk 0:01:07.1]} 22. Rxd6 {[%clk
0:02:16]} 22... Rf8 {[%clk 0:00:53.8]} 23. Rf6 {[%clk 0:02:12.2]} 23... Rxf6
{[%clk 0:00:41.4]} 24. Qxf6 {[%clk 0:02:13.1]} 24... Re8 {[%clk 0:00:41.7]} 25.
Bf4 {[%clk 0:02:12.1]} 1-0